[Event "MČR mládeže v rapid šachu 2024 H10"]
[Site "Harrachov, Czech Republic"]
[Date "????.??.??"]
[Round "3.1"]
[White "Lutskiy Mikhail"]
[Black "Vo Daniel"]
[Result "1-0"]
[TimeControl "20+5"]
[WhiteFideId "23744308"]
[BlackFideId "23761229"]
[WhiteElo "1729"]
[BlackElo "1679"]

1. e4 {[%clk 00:20:04]} {[%emt 00:00:06]} c5 {[%clk 00:20:06]} {[%emt
00:00:04]} 2. Nf3 {[%clk 00:20:07]} {[%emt 00:00:01]} d6 {[%clk 00:20:10]}
{[%emt 00:00:01]} 3. Bb5+ {[%clk 00:20:11]} {[%emt 00:00:01]} Nd7 {[%clk
00:20:05]} {[%emt 00:00:11]} 4. Bxd7+ {[%clk 00:20:04]} {[%emt 00:00:12]} Bxd7
{[%clk 00:20:05]} {[%emt 00:00:04]} 5. O-O {[%clk 00:20:07]} {[%emt 00:00:03]}
Nf6 {[%clk 00:20:03]} {[%emt 00:00:07]} 6. Re1 {[%clk 00:20:09]} {[%emt
00:00:02]} g6 {[%clk 00:20:03]} {[%emt 00:00:05]} 7. c3 {[%clk 00:20:13]}
{[%emt 00:00:03]} Bg7 {[%clk 00:20:05]} {[%emt 00:00:03]} 8. d4 {[%clk
00:20:15]} {[%emt 00:00:02]} cxd4 {[%clk 00:20:01]} {[%emt 00:00:09]} 9. cxd4
{[%clk 00:20:18]} {[%emt 00:00:02]} O-O {[%clk 00:19:59]} {[%emt 00:00:07]} 10.
Nc3 {[%clk 00:20:19]} {[%emt 00:00:05]} Bc6 {[%clk 00:19:25]} {[%emt 00:00:39]}
11. d5 {[%emt 00:01:57]} Bd7 {[%emt 00:00:05]} 12. h3 {[%emt 00:00:30]} Rc8
{[%emt 00:00:07]} 13. Be3 {[%emt 00:00:30]} a6 {[%emt 00:00:41]} 14. Rc1 {[%emt
00:00:49]} b5 {[%emt 00:01:01]} 15. Bd4 {[%emt 00:01:19]} Qa5 {[%emt 00:02:52]}
16. Bxf6 {[%emt 00:00:34]} Bxf6 {[%clk 00:16:01]} {[%emt 00:00:20]} 17. e5
{[%clk 00:13:55]} {[%emt 00:00:08]} dxe5 {[%clk 00:14:41]} {[%emt 00:00:52]} 18.
Nxe5 {[%clk 00:13:58]} {[%emt 00:00:34]} Rfd8 {[%clk 00:14:27]} {[%emt
00:00:18]} 19. Qe2 {[%clk 00:10:53]} {[%emt 00:03:09]} b4 {[%clk 00:13:31]}
{[%emt 00:01:03]} 20. Nxd7 {[%clk 00:10:44]} {[%emt 00:00:14]} Rxd7 {[%clk
00:13:23]} {[%emt 00:00:13]} 21. Ne4 {[%clk 00:10:18]} {[%emt 00:00:30]} Rxc1
{[%clk 00:12:58]} {[%emt 00:00:30]} 22. Nxf6+ {[%clk 00:10:20]} {[%emt
00:00:03]} exf6 {[%clk 00:13:02]} {[%emt 00:00:02]} 23. Rxc1 {[%clk 00:10:24]}
{[%emt 00:00:01]} Qxd5 {[%clk 00:12:58]} {[%emt 00:00:09]} 24. Qxa6 {[%clk
00:10:12]} {[%emt 00:00:17]} Kg7 {[%clk 00:12:37]} {[%emt 00:00:26]} 25. Qa4
{[%clk 00:10:03]} {[%emt 00:00:13]} Qd2 {[%clk 00:12:12]} {[%emt 00:00:31]} 26.
Rf1 {[%clk 00:09:14]} {[%emt 00:00:54]} Qxb2 {[%clk 00:11:58]} {[%emt
00:00:18]} 27. Qxd7 {[%clk 00:09:17]} {[%emt 00:00:03]} Qxa2 {[%clk 00:12:01]}
{[%emt 00:00:02]} 28. Qd3 {[%clk 00:09:11]} {[%emt 00:00:08]} b3 {[%clk
00:12:05]} {[%emt 00:00:05]} 29. Rb1 {[%clk 00:09:13]} {[%emt 00:00:02]} b2
{[%clk 00:12:08]} {[%emt 00:00:03]} 30. Qc2 {[%clk 00:09:15]} Qe6 {[%clk
00:12:05]} {[%emt 00:00:09]} 31. Qxb2 {[%clk 00:09:17]} {[%emt 00:00:04]} Qe4
{[%clk 00:12:08]} {[%emt 00:00:02]} 32. Rc1 {[%clk 00:09:16]} {[%emt 00:00:05]}
h5 {[%clk 00:12:09]} {[%emt 00:00:05]} 33. Qc3 {[%clk 00:09:11]} {[%emt
00:00:10]} h4 {[%clk 00:12:05]} {[%emt 00:00:09]} 34. Re1 {[%clk 00:09:14]}
{[%emt 00:00:01]} Qf4 {[%clk 00:12:03]} {[%emt 00:00:04]} 35. Qc2 {[%clk
00:09:15]} {[%emt 00:00:06]} Qg5 {[%clk 00:11:48]} {[%emt 00:00:21]} 36. Qe4
{[%clk 00:09:12]} {[%emt 00:00:08]} Qa5 {[%clk 00:11:46]} {[%emt 00:00:08]} 37.
Rf1 {[%clk 00:09:06]} {[%emt 00:00:11]} Qg5 {[%clk 00:11:46]} {[%emt 00:00:05]}
38. f4 {[%clk 00:09:07]} {[%emt 00:00:05]} Qc5+ {[%clk 00:11:37]} {[%emt
00:00:14]} 39. Kh2 {[%clk 00:09:04]} {[%emt 00:00:06]} Qb5 {[%clk 00:11:39]}
{[%emt 00:00:05]} 40. Rf3 {[%clk 00:09:00]} {[%emt 00:00:07]} Qb2 {[%clk
00:11:31]} {[%emt 00:00:14]} 41. Rd3 {[%clk 00:08:41]} {[%emt 00:00:24]} Qf2
{[%clk 00:11:14]} {[%emt 00:00:23]} 42. Qe3 {[%clk 00:08:11]} {[%emt 00:00:35]}
Qc2 {[%clk 00:11:08]} {[%emt 00:00:11]} 43. Rd7 {[%clk 00:08:13]} {[%emt
00:00:04]} Qf5 {[%clk 00:11:10]} {[%emt 00:00:03]} 44. Ra7 {[%clk 00:08:10]}
{[%emt 00:00:05]} Qh5 {[%clk 00:10:51]} {[%emt 00:00:27]} 45. Qd2 {[%clk
00:07:45]} {[%emt 00:00:29]} Qf5 {[%clk 00:10:46]} {[%emt 00:00:10]} 46. Ra5
{[%clk 00:07:39]} {[%emt 00:00:12]} Qe4 {[%clk 00:10:44]} {[%emt 00:00:05]} 47.
Qf2 {[%clk 00:07:31]} {[%emt 00:00:11]} Qb4 {[%clk 00:10:36]} {[%emt 00:00:15]}
48. Ra7 {[%clk 00:07:32]} {[%emt 00:00:06]} Qb8 {[%clk 00:10:34]} {[%emt
00:00:06]} 49. Ra1 {[%clk 00:06:57]} {[%emt 00:00:34]} Qh8 {[%clk 00:10:22]}
{[%emt 00:00:21]} 50. Ra4 {[%clk 00:06:37]} {[%emt 00:00:26]} Qh5 {[%clk
00:09:22]} {[%emt 00:01:05]} 51. f5 {[%clk 00:06:37]} {[%emt 00:00:06]} g5
{[%clk 00:09:24]} {[%emt 00:00:03]} 52. Ra6 {[%clk 00:06:22]} {[%emt 00:00:19]}
Qd1 {[%clk 00:08:16]} {[%emt 00:01:13]} 53. Qb2 {[%clk 00:06:02]} {[%emt
00:00:20]} Qd8 {[%clk 00:08:12]} {[%emt 00:00:12]} 54. Qb6 {[%clk 00:04:53]}
{[%emt 00:01:15]} Qe7 {[%clk 00:04:50]} {[%emt 00:03:27]} 55. Qd6 {[%clk
00:04:55]} {[%emt 00:00:04]} Qe5+ {[%clk 00:04:10]} {[%emt 00:00:46]} 56. Qxe5
{[%clk 00:04:58]} {[%emt 00:00:02]} fxe5 {[%clk 00:04:13]} {[%emt 00:00:01]} 57.
g4 {[%clk 00:05:02]} f6 {[%clk 00:04:09]} {[%emt 00:00:10]} 58. Kg2 {[%clk
00:05:04]} {[%emt 00:00:02]} Kf7 {[%clk 00:04:13]} {[%emt 00:00:02]} 59. Kf3
{[%clk 00:05:08]} {[%emt 00:00:01]} Ke7 {[%clk 00:04:17]} 60. Ke4 {[%clk
00:05:12]} Kf7 {[%clk 00:04:21]} 61. Re6 {[%clk 00:05:11]} {[%emt 00:00:05]}
Kg7 {[%clk 00:04:25]} {[%emt 00:00:02]} 62. Kd5 {[%clk 00:05:14]} {[%emt
00:00:02]} Kf7 {[%clk 00:04:28]} {[%emt 00:00:02]} 63. Kd6 {[%clk 00:05:16]}
{[%emt 00:00:03]} Kg7 {[%clk 00:04:32]} {[%emt 00:00:02]} 64. Ke7 {[%clk
00:05:19]} {[%emt 00:00:02]} Kh8 {[%clk 00:04:33]} {[%emt 00:00:03]} 65. Rxf6
{[%clk 00:05:23]} {[%emt 00:00:02]} e4 {[%clk 00:04:37]} {[%emt 00:00:01]} 66.
Rg6 {[%clk 00:05:24]} {[%emt 00:00:04]} e3 {[%clk 00:04:40]} {[%emt 00:00:02]}
67. Kf7 {[%clk 00:05:06]} {[%emt 00:00:22]} Kh7 {[%clk 00:04:43]} {[%emt
00:00:03]} 68. Rxg5 {[%clk 00:04:52]} {[%emt 00:00:19]} Kh6 {[%clk 00:04:35]}
{[%emt 00:00:12]} 69. Rh5+ {[%clk 00:04:55]} {[%emt 00:00:02]} 1-0



[ePGN "0.1;DGT LiveChess/2.2.6"]

[Event "MČR mládeže v rapid šachu 2024 H10"]
[Site "Harrachov, Czech Republic"]
[Date "????.??.??"]
[Round "3.2"]
[White "Temirbek Amirali"]
[Black "Zidek Damian"]
[Result "0-1"]
[TimeControl "20+5"]
[WhiteFideId "447019808"]
[BlackFideId "23761652"]
[WhiteElo "1514"]
[BlackElo "1763"]

1. e4 {[%emt 00:00:02]} e6 2. d4 {[%emt 00:00:03]} d5 3. Nd2 {[%clk 00:20:15]}
c5 {[%clk 00:20:17]} {[%emt 00:00:02]} 4. c3 {[%clk 00:20:16]} {[%emt
00:00:04]} Nc6 {[%clk 00:20:21]} 5. Bb5 {[%clk 00:20:07]} {[%emt 00:00:14]} Bd7
{[%clk 00:20:20]} {[%emt 00:00:06]} 6. Ne2 {[%clk 00:20:01]} {[%emt 00:00:11]}
Nf6 {[%clk 00:20:21]} {[%emt 00:00:04]} 7. e5 {[%clk 00:20:01]} {[%emt
00:00:05]} Ng8 {[%clk 00:20:06]} {[%emt 00:00:20]} 8. O-O {[%clk 00:19:59]}
{[%emt 00:00:06]} Nxe5 {[%clk 00:20:06]} {[%emt 00:00:06]} 9. Bxd7+ {[%clk
00:19:54]} {[%emt 00:00:10]} Nxd7 {[%clk 00:20:10]} {[%emt 00:00:02]} 10. dxc5
{[%clk 00:19:37]} {[%emt 00:00:21]} Bxc5 {[%clk 00:20:11]} {[%emt 00:00:04]} 11.
Nb3 {[%clk 00:19:40]} {[%emt 00:00:02]} Bb6 {[%clk 00:20:10]} {[%emt 00:00:06]}
12. Ned4 {[%clk 00:19:32]} {[%emt 00:00:11]} a6 {[%clk 00:20:07]} {[%emt
00:00:11]} 13. Qg4 {[%clk 00:19:27]} {[%emt 00:00:09]} Qf6 {[%clk 00:19:49]}
{[%emt 00:00:23]} 14. Qg3 {[%clk 00:19:23]} {[%emt 00:00:09]} Ne7 {[%clk
00:19:16]} {[%emt 00:00:38]} 15. Bg5 {[%clk 00:18:46]} {[%emt 00:00:43]} Qe5
{[%clk 00:18:33]} {[%emt 00:00:47]} 16. f4 {[%clk 00:18:43]} {[%emt 00:00:08]}
Qf5 {[%clk 00:16:27]} {[%emt 00:02:11]} 17. Kh1 {[%clk 00:18:24]} {[%emt
00:00:24]} Qg6 {[%clk 00:15:23]} {[%emt 00:01:09]} 18. Rae1 {[%clk 00:17:45]}
{[%emt 00:00:45]} Nf5 {[%clk 00:14:37]} {[%emt 00:00:52]} 19. Qh3 {[%clk
00:17:09]} {[%emt 00:00:40]} Nxd4 {[%clk 00:14:16]} {[%emt 00:00:26]} 20. Nxd4
{[%clk 00:17:12]} {[%emt 00:00:02]} Bxd4 {[%clk 00:14:02]} {[%emt 00:00:20]} 21.
cxd4 {[%clk 00:17:15]} {[%emt 00:00:01]} O-O {[%emt 00:00:25]} 22. Rf3 {[%clk
00:16:50]} {[%emt 00:00:22]} Rac8 {[%emt 00:01:29]} 23. Be7 {[%clk 00:14:30]}
{[%emt 00:01:46]} Rfe8 {[%clk 00:12:36]} {[%emt 00:00:34]} 24. Rg3 {[%emt
00:00:02]} Qe4 {[%emt 00:00:16]} 25. Bb4 {[%clk 00:13:41]} {[%emt 00:00:42]}
Qf5 {[%clk 00:10:54]} {[%emt 00:01:50]} 26. Rg4 {[%clk 00:12:06]} {[%emt
00:01:41]} Nf6 {[%clk 00:10:28]} {[%emt 00:00:30]} 27. Rg5 {[%clk 00:11:54]}
{[%emt 00:00:18]} Qxh3 {[%clk 00:10:17]} {[%emt 00:00:16]} 28. gxh3 {[%clk
00:11:57]} {[%emt 00:00:02]} Ne4 {[%clk 00:10:17]} {[%emt 00:00:05]} 29. Rg2
{[%clk 00:11:50]} {[%emt 00:00:11]} Rc4 {[%clk 00:09:41]} {[%emt 00:00:39]} 30.
a3 {[%clk 00:11:37]} {[%emt 00:00:22]} b6 {[%clk 00:09:23]} {[%emt 00:00:23]}
31. Reg1 {[%clk 00:11:26]} {[%emt 00:00:16]} g6 {[%clk 00:09:25]} {[%emt
00:00:04]} 32. Rd1 {[%clk 00:10:55]} {[%emt 00:00:35]} a5 {[%clk 00:09:23]}
{[%emt 00:00:08]} 33. Be1 {[%clk 00:10:47]} {[%emt 00:00:12]} Rec8 {[%clk
00:09:20]} {[%emt 00:00:09]} 34. Rd3 {[%clk 00:10:05]} {[%emt 00:00:47]} a4
{[%clk 00:08:50]} {[%emt 00:00:34]} 35. b3 {[%clk 00:10:02]} {[%emt 00:00:09]}
Rc1 {[%clk 00:08:46]} {[%emt 00:00:08]} 36. Re2 {[%clk 00:10:03]} {[%emt
00:00:03]} Nc3 {[%clk 00:07:58]} {[%emt 00:00:54]} 37. Ree3 {[%clk 00:09:49]}
{[%emt 00:00:19]} Nd1 {[%clk 00:07:15]} {[%emt 00:00:49]} 38. Re2 {[%clk
00:09:50]} {[%emt 00:00:04]} b5 {[%clk 00:06:39]} {[%emt 00:00:41]} 39. Kg2
{[%clk 00:09:25]} {[%emt 00:00:30]} R8c2 {[%clk 00:05:58]} {[%emt 00:00:46]} 40.
Kf3 {[%clk 00:08:39]} {[%emt 00:00:46]} Rxe2 {[%clk 00:04:41]} {[%emt
00:01:27]} 41. Kxe2 {[%clk 00:08:28]} {[%emt 00:00:16]} Nb2 {[%clk 00:04:41]}
{[%emt 00:00:05]} 42. Rd2 {[%clk 00:08:17]} {[%emt 00:00:15]} Rb1 {[%clk
00:04:26]} {[%emt 00:00:19]} 43. Bh4 {[%clk 00:07:32]} {[%emt 00:00:52]} axb3
{[%clk 00:04:09]} {[%emt 00:00:23]} 44. Bf6 {[%clk 00:07:26]} {[%emt 00:00:10]}
Nc4 {[%clk 00:04:09]} {[%emt 00:00:04]} 45. Rd1 {[%clk 00:07:22]} {[%emt
00:00:09]} Rb2+ {[%clk 00:03:45]} {[%emt 00:00:30]} 46. Kd3 {[%clk 00:07:15]}
{[%emt 00:00:12]} Rxh2 {[%clk 00:03:41]} {[%emt 00:00:09]} 47. h4 {[%clk
00:07:18]} {[%emt 00:00:02]} Rh3+ {[%clk 00:03:37]} {[%emt 00:00:10]} 48. Ke2
{[%clk 00:07:11]} {[%emt 00:00:12]} Re3+ {[%clk 00:03:29]} {[%emt 00:00:12]} 49.
Kf2 {[%clk 00:07:13]} {[%emt 00:00:05]} Rc3 {[%clk 00:03:28]} {[%emt 00:00:06]}
50. Ke2 {[%clk 00:07:08]} {[%emt 00:00:09]} b2 {[%clk 00:03:21]} {[%emt
00:00:13]} 51. Rb1 {[%clk 00:06:58]} {[%emt 00:00:15]} Rc1 {[%clk 00:03:23]}
{[%emt 00:00:03]} 52. Rxb2 {[%clk 00:06:42]} {[%emt 00:00:22]} Nxb2 {[%clk
00:03:27]} {[%emt 00:00:01]} 53. Kd2 {[%clk 00:06:44]} {[%emt 00:00:02]} Rf1
{[%clk 00:03:28]} {[%emt 00:00:03]} 54. Kc3 {[%clk 00:06:47]} {[%emt 00:00:03]}
Nc4 {[%clk 00:03:31]} {[%emt 00:00:03]} 55. Kb4 {[%clk 00:06:49]} {[%emt
00:00:03]} Rb1+ {[%clk 00:03:34]} {[%emt 00:00:02]} 56. Kc5 {[%clk 00:06:49]}
{[%emt 00:00:04]} Nxa3 {[%clk 00:03:37]} {[%emt 00:00:03]} 0-1



[ePGN "0.1;DGT LiveChess/2.2.6"]

[Event "MČR mládeže v rapid šachu 2024 H10"]
[Site "Harrachov, Czech Republic"]
[Date "????.??.??"]
[Round "3.3"]
[White "Bukovskij Dmitri"]
[Black "Bucek Vit"]
[Result "1/2-1/2"]
[TimeControl "20+5"]
[WhiteFideId "23749660"]
[BlackFideId "23750812"]
[WhiteElo "1700"]
[BlackElo "1586"]

1. d4 {[%emt 00:11:24]} Nf6 {[%emt 00:00:01]} 2. c4 e6 3. Nc3 {[%emt 00:00:01]}
d5 4. cxd5 {[%emt 00:00:02]} exd5 {[%emt 00:00:01]} 5. Bg5 Nbd7 {[%emt
00:00:02]} 6. e3 {[%emt 00:00:02]} Be7 {[%emt 00:00:02]} 7. Bd3 {[%emt
00:00:03]} O-O {[%emt 00:00:02]} 8. Qc2 {[%emt 00:00:06]} h6 {[%emt 00:00:01]}
9. Bf4 {[%emt 00:00:03]} c6 {[%emt 00:00:03]} 10. Nge2 {[%emt 00:00:02]} Re8
{[%emt 00:00:14]} 11. O-O-O {[%emt 00:00:02]} a5 {[%emt 00:00:03]} 12. Rdg1
{[%emt 00:00:01]} b5 {[%emt 00:00:04]} 13. g4 {[%emt 00:00:03]} b4 {[%emt
00:00:13]} 14. Na4 {[%emt 00:00:01]} Nb6 {[%emt 00:00:01]} 15. f3 {[%emt
00:01:11]} Nxa4 {[%emt 00:00:04]} 16. Qxa4 {[%emt 00:00:02]} Bd7 {[%emt
00:00:02]} 17. Qc2 {[%emt 00:00:13]} a4 {[%emt 00:00:08]} 18. h4 {[%emt
00:00:02]} b3 {[%emt 00:00:27]} 19. axb3 {[%emt 00:00:01]} axb3 {[%emt
00:00:01]} 20. Qb1 {[%emt 00:00:02]} Qa5 {[%emt 00:01:54]} 21. g5 {[%emt
00:00:15]} Nh5 {[%emt 00:00:55]} 22. gxh6 {[%emt 00:00:24]} Bf6 {[%emt
00:00:38]} 23. Bg5 {[%emt 00:00:54]} Qd8 {[%emt 00:01:57]} 24. Nf4 {[%emt
00:01:52]} Nxf4 {[%emt 00:00:42]} 25. Bxf4 {[%emt 00:00:02]} Kh8 {[%emt
00:00:53]} 26. hxg7+ {[%emt 00:00:24]} Bxg7 {[%emt 00:00:02]} 27. h5 {[%emt
00:00:02]} Qe7 {[%emt 00:01:09]} 28. Kd2 {[%emt 00:03:27]} Qb4+ {[%emt
00:00:27]} 29. Ke2 {[%emt 00:00:05]} Qxd4 {[%emt 00:00:22]} 30. Kf2 {[%emt
00:01:03]} Qxb2+ {[%emt 00:00:25]} 31. Qxb2 {[%emt 00:00:31]} Bxb2 {[%emt
00:00:03]} 32. Rg2 {[%emt 00:04:11]} Ra2 {[%emt 00:00:36]} 33. Be2 {[%emt
00:00:56]} Bf6 {[%emt 00:00:28]} 34. Rb1 {[%emt 00:00:52]} b2 {[%emt 00:00:19]}
35. Bg5 {[%emt 00:00:14]} Bxg5 {[%emt 00:00:03]} 36. Rxg5 {[%emt 00:00:02]} Rb8
{[%emt 00:00:09]} 37. h6 {[%emt 00:01:21]} Ra1 {[%emt 00:00:15]} 38. Bd3 {[%emt
00:00:01]} Be6 {[%emt 00:00:21]} 39. Rgg1 {[%emt 00:01:02]} Rxb1 {[%emt
00:00:07]} 40. Bxb1 {[%emt 00:00:45]} c5 {[%emt 00:00:07]} 41. Rg7 {[%emt
00:01:36]} f5 {[%emt 00:00:55]} 42. Re7 {[%emt 00:00:01]} Rb6 {[%emt 00:00:40]}
43. Kg3 {[%emt 00:00:49]} c4 {[%emt 00:00:02]} 44. e4 {[%emt 00:00:17]} dxe4
{[%emt 00:00:21]} 45. fxe4 {[%emt 00:00:04]} fxe4 {[%emt 00:00:17]} 46. Bxe4
{[%emt 00:00:02]} b1=Q {[%emt 00:00:13]} 47. Bxb1 {[%emt 00:00:01]} Rxb1 {[%emt
00:00:01]} 48. Rxe6 {[%emt 00:00:01]} c3 {[%emt 00:00:03]} 49. Rc6 {[%emt
00:00:19]} Rc1 {[%emt 00:00:07]} 50. Kf2 {[%emt 00:00:34]} c2 {[%emt 00:00:02]}
51. Ke2 {[%emt 00:00:07]} Rh1 {[%emt 00:00:11]} 52. Rxc2 {[%emt 00:00:11]} Rh2+
{[%emt 00:00:01]} 53. Kd3 {[%emt 00:00:03]} Rh3+ {[%emt 00:00:02]} 54. Kc4
{[%emt 00:00:02]} Rh4+ {[%emt 00:00:03]} 55. Kb3 {[%emt 00:00:02]} 1/2-1/2



[ePGN "0.1;DGT LiveChess/2.2.6"]

[Event "MČR mládeže v rapid šachu 2024 H10"]
[Site "Harrachov, Czech Republic"]
[Date "????.??.??"]
[Round "3.4"]
[White "Macharacek Jakub"]
[Black "Hlavacek Pavel"]
[Result "0-1"]
[TimeControl "20+5"]
[WhiteFideId "23766697"]
[BlackFideId "23761768"]
[WhiteElo "1584"]
[BlackElo "1641"]

1. e4 {[%clk 00:20:08]} {[%emt 00:00:02]} c6 {[%clk 00:20:08]} {[%emt
00:00:03]} 2. d4 {[%clk 00:20:11]} d5 {[%clk 00:20:12]} {[%emt 00:00:01]} 3.
exd5 {[%clk 00:20:15]} {[%emt 00:00:02]} cxd5 {[%clk 00:20:16]} {[%emt
00:00:03]} 4. Bd3 {[%clk 00:20:17]} Nc6 {[%clk 00:20:19]} {[%emt 00:00:02]} 5.
c3 {[%clk 00:20:21]} {[%emt 00:00:01]} Qc7 {[%clk 00:20:23]} {[%emt 00:00:02]}
6. Nf3 {[%clk 00:20:02]} {[%emt 00:00:24]} Bg4 {[%clk 00:20:11]} {[%emt
00:00:16]} 7. h3 {[%clk 00:19:57]} {[%emt 00:00:10]} Bh5 {[%clk 00:20:08]}
{[%emt 00:00:09]} 8. Be3 {[%clk 00:19:51]} {[%emt 00:00:11]} Nf6 {[%clk
00:20:00]} {[%emt 00:00:13]} 9. Nbd2 {[%clk 00:19:51]} {[%emt 00:00:04]} e6
{[%clk 00:20:02]} {[%emt 00:00:03]} 10. O-O {[%clk 00:19:46]} {[%emt 00:00:10]}
Bd6 {[%clk 00:20:05]} {[%emt 00:00:03]} 11. Rc1 {[%clk 00:19:22]} {[%emt
00:00:27]} O-O {[%clk 00:19:21]} {[%emt 00:00:49]} 12. Re1 {[%clk 00:19:00]}
{[%emt 00:00:27]} Rab8 {[%clk 00:18:22]} {[%emt 00:01:05]} 13. Qc2 {[%clk
00:18:26]} {[%emt 00:00:37]} Bg6 {[%clk 00:17:51]} {[%emt 00:00:38]} 14. b3
{[%clk 00:16:53]} {[%emt 00:01:37]} b5 {[%clk 00:17:16]} {[%emt 00:00:41]} 15.
Bxg6 {[%clk 00:16:27]} {[%emt 00:00:31]} hxg6 {[%clk 00:17:16]} {[%emt
00:00:05]} 16. Qd3 {[%clk 00:15:48]} {[%emt 00:00:43]} Qd7 {[%clk 00:15:14]}
{[%emt 00:02:08]} 17. Qe2 {[%clk 00:14:41]} {[%emt 00:01:12]} Rfe8 {[%clk
00:14:11]} {[%emt 00:01:09]} 18. c4 {[%clk 00:13:45]} {[%emt 00:01:00]} bxc4
{[%clk 00:13:04]} {[%emt 00:01:12]} 19. bxc4 {[%clk 00:13:34]} {[%emt
00:00:16]} Ne7 {[%clk 00:12:41]} {[%emt 00:00:26]} 20. c5 {[%clk 00:13:10]}
{[%emt 00:00:32]} Bc7 {[%clk 00:12:39]} {[%emt 00:00:06]} 21. Bg5 {[%clk
00:12:38]} {[%emt 00:00:37]} Nh7 {[%clk 00:11:33]} {[%emt 00:01:11]} 22. Bxe7
{[%clk 00:12:19]} {[%emt 00:00:25]} Qxe7 {[%clk 00:11:31]} {[%emt 00:00:08]} 23.
Nb3 {[%clk 00:12:04]} {[%emt 00:00:19]} Ng5 {[%clk 00:10:46]} {[%emt 00:00:49]}
24. Ne5 {[%clk 00:11:47]} {[%emt 00:00:23]} Bxe5 {[%clk 00:10:24]} {[%emt
00:00:27]} 25. Qxe5 {[%clk 00:11:49]} {[%emt 00:00:03]} Ne4 {[%clk 00:09:30]}
{[%emt 00:00:58]} 26. Rc2 {[%clk 00:11:24]} {[%emt 00:00:30]} f6 {[%clk
00:08:43]} {[%emt 00:00:53]} 27. Qf4 {[%clk 00:11:17]} {[%emt 00:00:12]} e5
{[%clk 00:08:17]} {[%emt 00:00:31]} 28. Qg4 {[%clk 00:10:58]} {[%emt 00:00:21]}
Qf7 {[%clk 00:07:37]} {[%emt 00:00:45]} 29. Rec1 {[%clk 00:10:28]} {[%emt
00:00:36]} f5 {[%clk 00:05:34]} {[%emt 00:02:09]} 30. Qd1 {[%clk 00:09:44]}
{[%emt 00:00:45]} Nf6 {[%clk 00:03:53]} {[%emt 00:01:48]} 31. dxe5 {[%clk
00:09:23]} {[%emt 00:00:28]} Rxe5 {[%clk 00:03:51]} {[%emt 00:00:06]} 32. Qd4
{[%clk 00:09:27]} {[%emt 00:00:02]} Rbe8 {[%clk 00:03:28]} {[%emt 00:00:27]} 33.
c6 {[%clk 00:08:53]} {[%emt 00:00:40]} Qc7 {[%clk 00:03:05]} {[%emt 00:00:26]}
34. f3 {[%clk 00:07:58]} {[%emt 00:01:01]} Re2 {[%clk 00:02:27]} {[%emt
00:00:42]} 35. Qa4 {[%clk 00:06:33]} {[%emt 00:01:31]} Qg3 {[%clk 00:01:55]}
{[%emt 00:00:35]} 36. Rxe2 {[%clk 00:03:09]} {[%emt 00:03:31]} Rxe2 {[%clk
00:01:57]} {[%emt 00:00:03]} 37. Qg4 {[%clk 00:02:52]} {[%emt 00:00:21]} fxg4
{[%clk 00:01:55]} {[%emt 00:00:07]} 0-1



[ePGN "0.1;DGT LiveChess/2.2.6"]

[Event "MČR mládeže v rapid šachu 2024 H10"]
[Site "Harrachov, Czech Republic"]
[Date "????.??.??"]
[Round "3.5"]
[White "Trejbal Jindrich"]
[Black "Krivka Lukas"]
[Result "1/2-1/2"]
[TimeControl "20+5"]
[WhiteFideId "23743948"]
[BlackFideId "23752092"]
[WhiteElo "1631"]
[BlackElo "1489"]

1. f4 {[%clk 00:20:09]} {[%emt 00:06:37]} d5 {[%clk 00:19:34]} {[%emt
00:00:37]} 2. d4 {[%clk 00:20:11]} {[%emt 00:00:02]} Nf6 {[%clk 00:19:29]}
{[%emt 00:00:09]} 3. Nf3 {[%clk 00:20:10]} {[%emt 00:00:06]} c6 {[%clk
00:19:23]} {[%emt 00:00:12]} 4. e3 {[%clk 00:20:11]} {[%emt 00:00:03]} Bg4
{[%clk 00:19:22]} {[%emt 00:00:07]} 5. Bd3 {[%clk 00:20:04]} {[%emt 00:00:12]}
e6 {[%clk 00:19:22]} {[%emt 00:00:06]} 6. Nbd2 {[%clk 00:19:58]} {[%emt
00:00:10]} Nbd7 {[%clk 00:18:58]} {[%emt 00:00:29]} 7. O-O {[%clk 00:19:31]}
{[%emt 00:00:31]} Be7 {[%clk 00:18:50]} {[%emt 00:00:13]} 8. Qe1 {[%clk
00:18:54]} {[%emt 00:00:42]} Bxf3 {[%clk 00:18:30]} {[%emt 00:00:26]} 9. Nxf3
{[%clk 00:18:31]} {[%emt 00:00:27]} Qc7 {[%clk 00:16:30]} {[%emt 00:02:05]} 10.
Ne5 {[%clk 00:18:22]} {[%emt 00:00:14]} a6 {[%clk 00:13:28]} {[%emt 00:03:08]}
11. Rf3 {[%clk 00:15:36]} {[%emt 00:02:50]} c5 {[%clk 00:13:07]} {[%emt
00:00:27]} 12. c3 {[%clk 00:15:23]} {[%emt 00:00:17]} c4 {[%clk 00:12:52]}
{[%emt 00:00:21]} 13. Bc2 {[%clk 00:15:16]} {[%emt 00:00:12]} b5 {[%clk
00:10:43]} {[%emt 00:02:14]} 14. Bd2 {[%clk 00:13:51]} {[%emt 00:01:30]} Nf8
{[%clk 00:10:04]} {[%emt 00:00:44]} 15. a4 {[%clk 00:13:38]} {[%emt 00:00:19]}
Qb7 {[%clk 00:09:27]} {[%emt 00:00:42]} 16. Rf1 {[%clk 00:12:28]} {[%emt
00:01:13]} N6d7 {[%clk 00:09:02]} {[%emt 00:00:30]} 17. axb5 {[%clk 00:11:36]}
{[%emt 00:00:58]} axb5 {[%clk 00:06:33]} {[%emt 00:02:34]} 18. Rxa8+ {[%clk
00:10:50]} {[%emt 00:00:49]} Qxa8 {[%clk 00:06:35]} {[%emt 00:00:03]} 19. Qa1
{[%clk 00:10:53]} {[%emt 00:00:02]} Nb6 {[%clk 00:05:25]} {[%emt 00:01:16]} 20.
Qxa8+ {[%clk 00:10:13]} {[%emt 00:00:44]} Nxa8 {[%clk 00:05:29]} {[%emt
00:00:02]} 21. Ra1 {[%clk 00:08:41]} {[%emt 00:01:38]} Nc7 {[%clk 00:05:32]}
{[%emt 00:00:01]} 22. Ra7 {[%clk 00:08:24]} {[%emt 00:00:22]} Bd6 {[%emt
00:00:31]} 23. Kf2 {[%clk 00:05:37]} {[%emt 00:02:49]} 1/2-1/2



[ePGN "0.1;DGT LiveChess/2.2.6"]